fUSD/lending_fUSD_20250111
["ID","MTS","AMOUNT","RATE_DAILY","PERIOD"]
[348537028,1736609378051,-637.28156648,9.887e-05,2]
[348537029,1736609378076,-500.0,9.887e-05,2]
[348537030,1736609378100,-164.6796185,9.887e-05,2]
[348537031,1736609382067,-336.76706592,9.887e-05,2]
[348537032,1736609382090,-539.97638807,9.887e-05,2]
[348537033,1736609382112,-500.0,9.887e-05,2]
[348537034,1736609382134,-500.0,9.887e-05,2]
[348537035,1736609382156,-500.0,9.887e-05,2]
[348537036,1736609382177,-500.0,9.887e-05,2]
[348537037,1736609382198,-500.0,9.887e-05,2]
[348537038,1736609382218,-500.0,9.887e-05,2]
[348537039,1736609382240,-500.0,9.887e-05,2]
[348537040,1736609382262,-500.0,9.887e-05,2]
[348537041,1736609382283,-500.0,9.887e-05,2]
[348537042,1736609382304,-500.0,9.887e-05,2]
[348537043,1736609382326,-500.0,9.887e-05,2]
[348537044,1736609382348,-500.0,9.887e-05,2]
[348537045,1736609382370,-500.0,9.887e-05,2]
[348537046,1736609382391,-500.0,9.887e-05,2]
[348537047,1736609382412,-500.0,9.887e-05,2]
[348537048,1736609382434,-500.0,9.887e-05,2]
[348537049,1736609382457,-500.0,9.887e-05,2]
[348537050,1736609382479,-500.0,9.887e-05,2]
[348537051,1736609382501,-123.25654601,9.887e-05,2]
[348537052,1736609386831,-579.72,9.885e-05,2]
[348537053,1736609386854,-376.74345399,9.887e-05,2]
[348537054,1736609386876,-500.0,9.887e-05,2]
[348537055,1736609386898,-500.0,9.887e-05,2]
[348537056,1736609386920,-500.0,9.887e-05,2]
[348537057,1736609386943,-500.0,9.887e-05,2]
[348537058,1736609386964,-500.0,9.887e-05,2]
[348537059,1736609386986,-500.0,9.887e-05,2]
[348537060,1736609387008,-500.0,9.887e-05,2]
[348537061,1736609387031,-500.0,9.887e-05,2]
[348537062,1736609387054,-500.0,9.887e-05,2]
[348537063,1736609387079,-500.0,9.887e-05,2]
[348537064,1736609387103,-500.0,9.887e-05,2]
[348537065,1736609387126,-500.0,9.887e-05,2]
[348537066,1736609387150,-500.0,9.887e-05,2]
[348537067,1736609387174,-500.0,9.887e-05,2]
[348537068,1736609387196,-500.0,9.887e-05,2]
[348537069,1736609387217,-500.0,9.887e-05,2]
[348537070,1736609387239,-500.0,9.887e-05,2]
[348537071,1736609387262,-543.53654601,9.887e-05,2]
[348537072,1736609391039,-6110.17,9.551e-05,2]
[348537073,1736609391067,-81.98345399,9.887e-05,2]
[348537074,1736609391095,-500.0,9.887e-05,2]
[348537075,1736609391119,-500.0,9.887e-05,2]
[348537076,1736609391143,-500.0,9.887e-05,2]
[348537077,1736609391168,-500.0,9.999e-05,2]
[348537078,1736609391191,-500.0,9.999e-05,2]
[348537079,1736609391216,-500.0,9.999e-05,2]
[348537080,1736609391240,-807.84654601,9.999e-05,2]
[348537085,1736609432656,-308.89,9.608e-05,2]
[348537086,1736609432668,-1945.18,9.885e-05,2]
[348537087,1736609432679,-1396.18,9.885e-05,2]
[348537088,1736609432690,-500.0,9.885e-05,2]
[348537089,1736609432706,-539.97,9.887e-05,2]
[348537090,1736609432718,-500.0,9.887e-05,2]
[348537091,1736609432730,-300.0,9.998e-05,2]
[348537092,1736609432742,-192.15345399,9.999e-05,2]
[348537093,1736609432754,-500.0,9.999e-05,2]
[348537094,1736609432765,-500.0,9.999e-05,2]
[348537095,1736609432776,-723.76,9.999e-05,2]
[348537096,1736609432788,-500.0,9.999e-05,2]
[348537097,1736609432800,-1576.09,9.999e-05,2]
[348537098,1736609432811,-500.0,9.999e-05,2]
[348537099,1736609432823,-500.0,9.999e-05,2]
[348537100,1736609432834,-736.0,9.999e-05,2]
[348537101,1736609432846,-1421.49,9.999e-05,2]
[348537102,1736609432858,-500.0,9.999e-05,2]
[348537103,1736609432870,-500.0,9.999e-05,2]
[348537104,1736609432881,-607.98,9.999e-05,2]
[348537105,1736609432892,-500.0,9.999e-05,2]
[348537106,1736609432904,-500.0,9.999e-05,2]
[348537107,1736609432916,-500.0,9.999e-05,2]
[348537108,1736609432927,-500.0,9.999e-05,2]
[348537109,1736609432939,-500.0,9.999e-05,2]
[348537110,1736609432951,-500.0,9.999e-05,2]
[348537111,1736609432962,-500.0,9.999e-05,2]
[348537112,1736609432973,-500.0,9.999e-05,2]
[348537113,1736609432985,-913.63,9.999e-05,2]
[348537114,1736609432996,-500.0,9.999e-05,2]
[348537115,1736609433008,-503.81658871,9.999e-05,2]
[348537116,1736609433020,-500.0,9.999e-05,2]
[348537117,1736609433033,-500.0,9.999e-05,2]
[348537118,1736609433046,-528.48766982,9.999e-05,2]
[348537119,1736609433058,-532.2596745,9.999e-05,2]
[348537120,1736609433069,-502.75653172,9.999e-05,2]
[348537121,1736609433081,-2029004.62860286,0.0001,2]
[348537122,1736609433457,-262.76248,0.0001,2]
[348537123,1736609433470,-312.69458048,0.0001,2]
[348537124,1736609433507,-45955.78887337,0.0001,2]
[348537125,1736609433521,-666.219778,0.0001,2]
[348537126,1736609433559,-365511.95377534,0.0001,2]
[348537127,1736609433573,-1640.41786084,0.0001,2]
[348537128,1736609433586,-4207.33534348,0.0001,2]
[348537129,1736609433601,-316.39846166,0.0001,2]
[348537133,1736609438372,-500.0,9.999e-05,2]
[348537135,1736609438382,-500.0,9.999e-05,2]
[348537137,1736609438391,-103.56416,9.999e-05,2]
[348537139,1736609438402,-396.43584,9.999e-05,2]
[348537141,1736609438411,-197.97,9.999e-05,2]
[348537142,1736609438421,-500.0,9.999e-05,2]
[348537143,1736609438431,-500.0,9.999e-05,2]
[348537144,1736609438440,-6962.21472156,0.0001,2]
[348537145,1736609438457,-2115.47849276,0.0001,2]
[348537146,1736609438468,-6348.342,0.0001,2]
[348537147,1736609438479,-562.743625,0.0001,2]
[348537148,1736609438490,-13580.98115534,0.0001,2]
[348537149,1736609438501,-1005.2624298,0.0001,2]
[348537150,1736609438512,-514.09640394,0.0001,2]
[348537151,1736609438523,-562.03917688,0.0001,2]
[348537152,1736609438542,-79868.53790481,0.0001,2]
[348537153,1736609438577,-536.09511421,0.0001,2]
[348537154,1736609438588,-448.49998,0.0001,2]
[348537155,1736609438627,-540.65357155,0.0001,2]
[348537156,1736609438688,-1616.12213351,0.0001,2]
[348537162,1736609442103,-500.0,9.999e-05,2]
[348537163,1736609442113,-152.0666826,9.999e-05,2]
[348537164,1736609442125,-347.9333174,9.999e-05,2]
[348537165,1736609442134,-3331.0666866,0.0001,2]
[348537166,1736609442146,-596.0138533,0.0001,2]
[348537167,1736609442156,-1001.8,0.0001,2]
[348537168,1736609442172,-435.38038272,0.0001,2]
[348537169,1736609442183,-259.94963904,0.0001,2]
[348537170,1736609442194,-801.17392255,0.0001,2]
[348537171,1736609442205,-809.91442546,0.0001,2]
[348537172,1736609442216,-2699.36493833,0.0001,2]
[348537173,1736609442260,-157395.6758918,0.0001,2]
[348537174,1736609442272,-8706.80558528,0.0001,2]
[348537175,1736609442284,-19123.17349961,0.0001,2]
[348537176,1736609442295,-101262.3265685,0.0001,2]
[348537177,1736609442306,-2071.835,0.0001,2]
[348537178,1736609442319,-1000.0,0.0001,2]
[348537179,1736609442364,-6315.3454475,0.0001,2]
[348537180,1736609442376,-3945.05623852,0.0001,2]
[348537181,1736609442388,-4014.29512236,0.0001,2]
[348537182,1736609442407,-946.41,0.0001,2]
[348537183,1736609442439,-120392.76235352,0.0001,2]
[348537191,1736609443772,-539.42,9.885e-05,2]
[348537192,1736609443786,-500.0,9.999e-05,2]
[348537193,1736609443796,-500.0,9.999e-05,2]
[348537194,1736609443806,-28178.4624,0.0001,2]
[348537195,1736609443818,-3994.0873692,0.0001,2]
[348537196,1736609443829,-30379.48635585,0.0001,2]
[348537197,1736609443841,-17666.0,0.0001,2]
[348537198,1736609443857,-723.59999995,0.0001,2]
[348537199,1736609443869,-653.550005,0.0001,2]
[348537200,1736609443881,-12633.27044828,0.0001,2]
[348537201,1736609443892,-379.999905,0.0001,2]
[348537202,1736609443903,-965.86422473,0.0001,2]
[348537203,1736609443922,-669.74935709,0.0001,2]
[348537205,1736609443943,-1007.55282887,0.0001,2]
[348537206,1736609443955,-514.97010049,0.0001,2]
[348537208,1736609444005,-2865.52703788,0.0001,2]
[348537209,1736609444016,-29289.8656,0.0001,2]
[348537210,1736609444029,-3862.7421075,0.0001,2]
[348537211,1736609444038,-26444.65216528,0.0001,2]
[348537212,1736609444049,-6109.19847197,0.0001,2]
[348537213,1736609444254,-3903.50463219,0.0001,2]
[348537214,1736609444264,-774710.20414859,0.0001,2]
[348537216,1736609446493,-325.58338115,0.0001,2]
[348537217,1736609446505,-49281.89769817,0.0001,2]
[348537218,1736609446517,-37437.09328713,0.0001,2]
[348537219,1736609446528,-16420.0,0.0001,2]
[348537220,1736609446541,-1143.34385754,0.0001,2]
[348537221,1736609446552,-1162.02012695,0.0001,2]
[348537222,1736609446564,-930.85788013,0.0001,2]
[348537223,1736609446575,-15099.985,0.0001,2]
[348537224,1736609446587,-13727.17024442,0.0001,2]
[348537225,1736609446598,-50580.91430483,0.0001,2]
[348537226,1736609446610,-6127.55805276,0.0001,2]
[348537227,1736609446621,-3624.14394963,0.0001,2]
[348537228,1736609446632,-301.28832678,0.0001,2]
[348537229,1736609446644,-11267.20605,0.0001,2]
[348537230,1736609446674,-3478.66450157,0.0001,2]
[348537231,1736609446765,-500.0,0.0001,2]
[348537232,1736609446777,-125668.66514912,0.0001,2]
[348537233,1736609446789,-4845.57395239,0.0001,2]
[348537234,1736609446800,-39789.9104,0.0001,2]
[348537235,1736609446812,-1373.14585864,0.0001,2]
[348537236,1736609446823,-694.19294518,0.0001,2]
[348537245,1736609891005,166.36,7.492e-05,2]
[348537246,1736610031665,559.99,8.219e-05,2]
[348537252,1736610508078,5000.0,0.0002,120]
[348537267,1736610631613,-250.0,9.011e-05,2]
[348537268,1736610631624,-250.0,9.017e-05,2]
[348537269,1736610631633,-304.7,9.028e-05,2]
[348537270,1736610631643,-150.0,9.038e-05,2]
[348537271,1736610631652,-250.0,9.057e-05,2]
[348537272,1736610631661,-164.81,9.113e-05,2]
[348537273,1736610631671,-475.68797307,9.144e-05,2]
[348537274,1736610631683,-208.04202693,9.144e-05,2]
[348537275,1736610631692,-447.12,9.174e-05,2]
[348537276,1736610631701,-300.0,9.28e-05,2]
[348537277,1736610631709,-1547.33797307,9.281e-05,2]
[348537278,1736610631741,-11238.0690904,9.281e-05,2]
[348537279,1736610631752,-3984.49750991,9.281e-05,2]
[348537280,1736610631764,-7130.09542662,9.281e-05,2]
[348537281,1736610631773,-374.08,9.311e-05,2]
[348537282,1736610631783,-211.53,9.374e-05,2]
[348537283,1736610631792,-150.0,9.56e-05,2]
[348537284,1736610631802,-150.0,9.863e-05,2]
[348537285,1736610631812,-880.01,9.885e-05,2]
[348537286,1736610631822,-500.0,9.885e-05,2]
[348537287,1736610631832,-500.0,9.885e-05,2]
[348537288,1736610631841,-1374.04,9.885e-05,2]
[348537289,1736610631850,-500.0,9.885e-05,2]
[348537290,1736610631859,-500.0,9.885e-05,2]
[348537291,1736610631869,-839.74,9.885e-05,2]
[348537292,1736610631879,-560.03,9.885e-05,2]
[348537293,1736610631888,-796.77,9.885e-05,2]
[348537294,1736610631897,-500.0,9.885e-05,2]
[348537295,1736610631909,-1000.0,9.885e-05,2]
[348537296,1736610631918,-515.81,9.885e-05,2]
[348537297,1736610631928,-500.0,9.885e-05,2]
[348537298,1736610631937,-500.0,9.9e-05,2]
[348537299,1736610631947,-1000.0,9.9e-05,2]
[348537300,1736610631956,-772.01,9.9e-05,2]
[348537301,1736610631965,-1032.3608,9.973e-05,2]
[348537302,1736610631975,-180.481,9.973e-05,2]
[348537303,1736610631984,-500.21751199,9.973e-05,2]
[348537304,1736610631994,-160.09892655,9.973e-05,2]
[348537305,1736610632004,-152.09555232,9.973e-05,2]
[348537306,1736610632013,-151.85303518,9.973e-05,2]
[348537307,1736610632022,-152.09550938,9.973e-05,2]
[348537308,1736610632032,-502.1562931,9.973e-05,2]
[348537309,1736610632041,-169.71835804,9.973e-05,2]
[348537310,1736610632050,-500.0,9.973e-05,2]
[348537311,1736610632059,-152.0936181,9.973e-05,2]
[348537312,1736610632069,-2035.499,9.973e-05,2]
[348537313,1736610632079,-500.0,9.998e-05,2]
[348537314,1736610632088,-500.0,9.998e-05,2]
[348537315,1736610632098,-500.0,9.998e-05,2]
[348537316,1736610632107,-500.0,9.998e-05,2]
[348537317,1736610632117,-500.0,9.998e-05,2]
[348537318,1736610632127,-500.0,9.998e-05,2]
[348537319,1736610632136,-500.0,9.998e-05,2]
[348537320,1736610632147,-500.0,9.998e-05,2]
[348537322,1736610632156,-500.0,9.998e-05,2]
[348537324,1736610632166,-500.0,9.998e-05,2]
[348537326,1736610632175,-500.0,9.998e-05,2]
[348537328,1736610632184,-500.0,9.998e-05,2]
[348537330,1736610632194,-500.0,9.998e-05,2]
[348537331,1736610632203,-500.0,9.998e-05,2]
[348537334,1736610632213,-500.0,9.998e-05,2]
[348537335,1736610632224,-500.0,9.998e-05,2]
[348537337,1736610632233,-500.0,9.998e-05,2]
[348537339,1736610632244,-500.0,9.998e-05,2]
[348537341,1736610632254,-500.0,9.998e-05,2]
[348537343,1736610632263,-500.0,9.998e-05,2]
[348537345,1736610632273,-500.0,9.998e-05,2]
[348537347,1736610632282,-500.0,9.998e-05,2]
[348537349,1736610632291,-500.0,9.998e-05,2]
[348537351,1736610632300,-500.0,9.998e-05,2]
[348537353,1736610632310,-500.0,9.998e-05,2]
[348537355,1736610632320,-500.0,9.998e-05,2]
[348537357,1736610632330,-500.0,9.998e-05,2]
[348537359,1736610632340,-500.0,9.998e-05,2]
[348537361,1736610632349,-500.0,9.998e-05,2]
[348537363,1736610632359,-500.0,9.998e-05,2]
[348537366,1736610632369,-500.0,9.998e-05,2]
[348537368,1736610632378,-500.0,9.998e-05,2]
[348537370,1736610632388,-500.0,9.998e-05,2]
[348537372,1736610632397,-500.0,9.998e-05,2]
[348537376,1736610632408,-500.0,9.998e-05,2]
[348537379,1736610632418,-500.0,9.998e-05,2]
[348537382,1736610632427,-500.0,9.998e-05,2]
[348537384,1736610632437,-500.0,9.998e-05,2]
[348537388,1736610632446,-500.0,9.998e-05,2]
[348537391,1736610632457,-500.0,9.998e-05,2]
[348537393,1736610632468,-500.0,9.998e-05,2]
[348537396,1736610632478,-500.0,9.998e-05,2]
[348537400,1736610632489,-500.0,9.998e-05,2]
[348537402,1736610632499,-500.0,9.998e-05,2]
[348537405,1736610632508,-500.0,9.998e-05,2]
[348537407,1736610632518,-500.0,9.998e-05,2]
[348537409,1736610632527,-500.0,9.998e-05,2]
[348537445,1736610632788,-500.0,9.998e-05,2]
[348537447,1736610632799,-500.0,9.998e-05,2]
[348537449,1736610632808,-500.0,9.998e-05,2]
[348537451,1736610632818,-500.0,9.998e-05,2]
[348537453,1736610632827,-500.0,9.998e-05,2]
[348537455,1736610632836,-500.0,9.998e-05,2]
[348537457,1736610632845,-500.0,9.998e-05,2]
[348537459,1736610632854,-500.0,9.998e-05,2]
[348537461,1736610632863,-500.0,9.998e-05,2]
[348537463,1736610632873,-500.0,9.998e-05,2]
[348537465,1736610632882,-500.0,9.998e-05,2]
[348537467,1736610632891,-500.0,9.998e-05,2]
[348537469,1736610632901,-500.0,9.998e-05,2]
[348537471,1736610632911,-744.554382,9.998e-05,2]
[348537473,1736610632921,-500.0,9.998e-05,2]
[348537475,1736610632930,-500.0,9.998e-05,2]
[348537477,1736610632939,-342.33052173,9.998e-05,2]
[348537479,1736610632949,-500.0,9.998e-05,2]
[348537481,1736610632958,-160.823698,9.998e-05,2]
[348537483,1736610632967,-500.0,9.998e-05,2]
[348537485,1736610632976,-500.0,9.998e-05,2]
[348537487,1736610632986,-155.832257,9.998e-05,2]
[348537489,1736610632995,-500.0,9.998e-05,2]
[348537491,1736610633005,-500.0,9.998e-05,2]
[348537493,1736610633014,-500.0,9.998e-05,2]
[348537495,1736610633024,-500.0,9.998e-05,2]
[348537496,1736610633033,-500.0,9.998e-05,2]
[348537498,1736610633043,-500.0,9.998e-05,2]
[348537500,1736610633052,-500.0,9.998e-05,2]
[348537502,1736610633062,-500.0,9.998e-05,2]
[348537504,1736610633072,-500.0,9.998e-05,2]
[348537506,1736610633082,-500.0,9.998e-05,2]
[348537508,1736610633093,-500.0,9.998e-05,2]
[348537510,1736610633102,-500.0,9.998e-05,2]
[348537512,1736610633112,-631.288015,9.998e-05,2]
[348537514,1736610633122,-500.0,9.998e-05,2]
[348537516,1736610633132,-1115.23,9.998e-05,2]
[348537518,1736610633142,-500.0,9.998e-05,2]
[348537520,1736610633152,-500.0,9.998e-05,2]
[348537522,1736610633162,-500.0,9.998e-05,2]
[348537524,1736610633172,-500.0,9.998e-05,2]
[348537526,1736610633181,-500.0,9.998e-05,2]
[348537528,1736610633191,-500.0,9.998e-05,2]
[348537530,1736610633201,-500.0,9.998e-05,2]
[348537532,1736610633211,-500.0,9.998e-05,2]
[348537534,1736610633220,-2330.09,9.998e-05,2]
[348537536,1736610633230,-500.0,9.998e-05,2]
[348537538,1736610633241,-500.0,9.998e-05,2]
[348537540,1736610633251,-500.0,9.998e-05,2]
[348537542,1736610633261,-500.0,9.998e-05,2]
[348537544,1736610633271,-500.0,9.998e-05,2]
[348537546,1736610633281,-500.0,9.998e-05,2]
[348537548,1736610633291,-1766.97,9.998e-05,2]
[348537550,1736610633300,-500.0,9.998e-05,2]
[348537552,1736610633310,-500.0,9.998e-05,2]
[348537554,1736610633320,-500.0,9.998e-05,2]
[348537556,1736610633330,-574.53,9.998e-05,2]
[348537558,1736610633339,-500.0,9.998e-05,2]
[348537560,1736610633350,-500.0,9.998e-05,2]
[348537562,1736610633363,-500.0,9.998e-05,2]
[348537564,1736610633372,-500.0,9.998e-05,2]
[348537566,1736610633382,-500.0,9.998e-05,2]
[348537568,1736610633392,-500.0,9.998e-05,2]
[348537570,1736610633402,-1332.56,9.998e-05,2]
[348537572,1736610633411,-500.0,9.998e-05,2]
[348537574,1736610633420,-500.0,9.998e-05,2]
[348537576,1736610633429,-500.0,9.998e-05,2]
[348537578,1736610633439,-4211.41,9.998e-05,2]
[348537580,1736610633449,-500.0,9.998e-05,2]
[348537582,1736610633459,-500.0,9.998e-05,2]
[348537584,1736610633471,-500.0,9.998e-05,2]
[348537586,1736610633481,-500.0,9.998e-05,2]
[348537588,1736610633492,-500.0,9.998e-05,2]
[348537590,1736610633503,-500.0,9.998e-05,2]
[348537592,1736610633513,-1275.09,9.998e-05,2]
[348537594,1736610633523,-500.0,9.998e-05,2]
[348537596,1736610633535,-500.0,9.998e-05,2]
[348537598,1736610633546,-500.0,9.998e-05,2]
[348537600,1736610633556,-761.01,9.998e-05,2]
[348537602,1736610633566,-500.0,9.998e-05,2]
[348537604,1736610633575,-500.0,9.998e-05,2]
[348537606,1736610633585,-500.0,9.998e-05,2]
[348537607,1736610633594,-500.0,9.998e-05,2]
[348537610,1736610633605,-500.0,9.998e-05,2]
[348537612,1736610633615,-500.0,9.998e-05,2]
[348537614,1736610633624,-500.0,9.998e-05,2]
[348537616,1736610633634,-500.0,9.998e-05,2]
[348537618,1736610633644,-773.03,9.998e-05,2]
[348537619,1736610633654,-500.0,9.998e-05,2]
[348537622,1736610633664,-500.0,9.998e-05,2]
[348537624,1736610633674,-500.0,9.998e-05,2]
[348537626,1736610633684,-500.0,9.998e-05,2]
[348537628,1736610633693,-500.0,9.998e-05,2]
[348537629,1736610633703,-500.0,9.998e-05,2]
[348537632,1736610633712,-500.0,9.998e-05,2]
[348537634,1736610633722,-1454.88,9.998e-05,2]
[348537636,1736610633732,-500.0,9.998e-05,2]
[348537638,1736610633742,-500.0,9.998e-05,2]
[348537640,1736610633752,-500.0,9.998e-05,2]
[348537642,1736610633762,-500.0,9.998e-05,2]
[348537644,1736610633772,-500.0,9.998e-05,2]
[348537646,1736610633782,-500.0,9.998e-05,2]
[348537648,1736610633791,-2472.62,9.998e-05,2]
[348537649,1736610633800,-500.0,9.998e-05,2]
[348537651,1736610633809,-500.0,9.998e-05,2]
[348537654,1736610633819,-500.0,9.998e-05,2]
[348537656,1736610633829,-500.0,9.998e-05,2]
[348537658,1736610633838,-1785.21,9.998e-05,2]
[348537659,1736610633848,-500.0,9.998e-05,2]
[348537661,1736610633857,-500.0,9.998e-05,2]
[348537664,1736610633867,-500.0,9.998e-05,2]
[348537666,1736610633876,-500.0,9.998e-05,2]
[348537667,1736610633886,-1532.18,9.998e-05,2]
[348537669,1736610633896,-500.0,9.998e-05,2]
[348537672,1736610633906,-500.0,9.998e-05,2]
[348537674,1736610633915,-2774.13,9.998e-05,2]
[348537676,1736610633925,-2924.48,9.998e-05,2]
[348537677,1736610633935,-500.0,9.998e-05,2]
[348537680,1736610633945,-500.0,9.998e-05,2]
[348537681,1736610633955,-500.0,9.998e-05,2]
[348537683,1736610633965,-500.0,9.998e-05,2]
[348537685,1736610633975,-500.0,9.998e-05,2]
[348537688,1736610633985,-500.0,9.998e-05,2]
[348537690,1736610633998,-632.01,9.998e-05,2]
[348537692,1736610634008,-500.0,9.998e-05,2]
[348537693,1736610634018,-635.18,9.998e-05,2]
[348537696,1736610634028,-500.0,9.998e-05,2]
[348537697,1736610634038,-500.0,9.998e-05,2]
[348537699,1736610634048,-851.94,9.998e-05,2]
[348537701,1736610634058,-500.0,9.998e-05,2]
[348537704,1736610634069,-500.0,9.998e-05,2]
[348537706,1736610634079,-1533.04,9.998e-05,2]
[348537707,1736610634089,-500.0,9.998e-05,2]
[348537709,1736610634098,-500.0,9.998e-05,2]
[348537712,1736610634109,-500.0,9.998e-05,2]
[348537714,1736610634119,-500.0,9.998e-05,2]
[348537715,1736610634129,-500.0,9.998e-05,2]
[348537718,1736610634139,-931.54,9.998e-05,2]
[348537720,1736610634149,-500.0,9.998e-05,2]
[348537722,1736610634159,-500.0,9.998e-05,2]
[348537723,1736610634169,-500.0,9.998e-05,2]
[348537725,1736610634179,-500.0,9.998e-05,2]
[348537727,1736610634190,-500.0,9.998e-05,2]
[348537729,1736610634200,-500.0,9.998e-05,2]
[348537731,1736610634210,-500.0,9.998e-05,2]
[348537733,1736610634220,-500.0,9.998e-05,2]
[348537735,1736610634230,-500.0,9.998e-05,2]
[348537737,1736610634243,-500.0,9.998e-05,2]
[348537739,1736610634253,-500.0,9.998e-05,2]
[348537741,1736610634263,-1839.19,9.998e-05,2]
[348537743,1736610634273,-500.0,9.998e-05,2]
[348537745,1736610634283,-500.0,9.998e-05,2]
[348537747,1736610634293,-1140.01,9.998e-05,2]
[348537749,1736610634304,-500.0,9.998e-05,2]
[348537751,1736610634314,-541.19,9.998e-05,2]
[348537753,1736610634325,-500.0,9.998e-05,2]
[348537755,1736610634334,-500.0,9.998e-05,2]
[348537757,1736610634344,-1530.38,9.998e-05,2]
[348537759,1736610634354,-662.56,9.998e-05,2]
[348537762,1736610634363,-306.711377,9.998e-05,2]
[348537764,1736610634374,-500.0,9.998e-05,2]
[348537766,1736610634383,-500.0,9.998e-05,2]
[348537767,1736610634392,-500.0,9.998e-05,2]
[348537769,1736610634402,-500.0,9.998e-05,2]
[348537771,1736610634411,-500.0,9.998e-05,2]
[348537773,1736610634420,-500.0,9.998e-05,2]
[348537776,1736610634430,-500.0,9.998e-05,2]
[348537778,1736610634439,-500.0,9.998e-05,2]
[348537779,1736610634448,-500.0,9.998e-05,2]
[348537781,1736610634458,-737.1,9.998e-05,2]
[348537783,1736610634469,-500.0,9.998e-05,2]
[348537784,1736610634478,-500.0,9.998e-05,2]
[348537785,1736610634488,-500.0,9.998e-05,2]
[348537786,1736610634499,-500.0,9.998e-05,2]
[348537787,1736610634508,-500.0,9.998e-05,2]
[348537788,1736610634517,-500.0,9.998e-05,2]
[348537789,1736610634527,-500.0,9.998e-05,2]
[348537790,1736610634540,-500.0,9.998e-05,2]
[348537791,1736610634549,-720.61,9.998e-05,2]
[348537792,1736610634558,-500.0,9.998e-05,2]
[348537793,1736610634567,-500.0,9.998e-05,2]
[348537794,1736610634576,-581.95,9.998e-05,2]
[348537795,1736610634586,-500.0,9.998e-05,2]
[348537796,1736610634595,-500.0,9.998e-05,2]
[348537797,1736610634605,-500.0,9.998e-05,2]
[348537798,1736610634614,-500.0,9.998e-05,2]
[348537799,1736610634624,-1056.22,9.998e-05,2]
[348537800,1736610634635,-500.0,9.999e-05,2]
[348537801,1736610634646,-500.0,9.999e-05,2]
[348537802,1736610634656,-500.0,9.999e-05,2]
[348537803,1736610634667,-500.0,9.999e-05,2]
[348537804,1736610634676,-500.0,9.999e-05,2]
[348537805,1736610634685,-500.0,9.999e-05,2]
[348537806,1736610634695,-500.0,9.999e-05,2]
[348537807,1736610634704,-500.0,9.999e-05,2]
[348537808,1736610634713,-500.0,9.999e-05,2]
[348537809,1736610634723,-500.0,9.999e-05,2]
[348537810,1736610634732,-500.0,9.999e-05,2]
[348537811,1736610634741,-500.0,9.999e-05,2]
[348537812,1736610634750,-500.0,9.999e-05,2]
[348537813,1736610634760,-500.0,9.999e-05,2]
[348537814,1736610634769,-500.0,9.999e-05,2]
[348537815,1736610634778,-500.0,9.999e-05,2]
[348537816,1736610634787,-500.0,9.999e-05,2]
[348537817,1736610634796,-500.0,9.999e-05,2]
[348537818,1736610634805,-500.0,9.999e-05,2]
[348537819,1736610634814,-500.0,9.999e-05,2]
[348537820,1736610634824,-500.0,9.999e-05,2]
[348537821,1736610634833,-500.0,9.999e-05,2]
[348537822,1736610634842,-500.0,9.999e-05,2]
[348537823,1736610634851,-500.0,9.999e-05,2]
[348537824,1736610634860,-500.0,9.999e-05,2]
[348537825,1736610634869,-500.0,9.999e-05,2]
[348537826,1736610634879,-500.0,9.999e-05,2]
[348537827,1736610634888,-500.0,9.999e-05,2]
[348537828,1736610634898,-500.0,9.999e-05,2]
[348537829,1736610634907,-500.0,9.999e-05,2]
[348537830,1736610634916,-500.0,9.999e-05,2]
[348537831,1736610634925,-500.0,9.999e-05,2]
[348537832,1736610634934,-500.0,9.999e-05,2]
[348537833,1736610634944,-500.0,9.999e-05,2]